bitfinex/quotes_BTCUSD_20250421
["timestamp","ask_amount","ask_price","bid_price","bid_amount"]
[1745237589125,1.30376699,87180.0,87179.0,1e-08]
[1745237589764,0.88961956,87180.0,87179.0,1e-08]
[1745237590142,0.81565831,87180.0,87179.0,1e-08]
[1745237593362,0.77005831,87180.0,87179.0,1e-08]
[1745237597135,0.76805831,87180.0,87179.0,1e-08]
[1745237597337,0.76605831,87180.0,87179.0,1e-08]
[1745237599134,0.76705831,87180.0,87179.0,1e-08]
[1745237599568,0.76605831,87180.0,87179.0,1e-08]
[1745237599714,0.76705831,87180.0,87179.0,1e-08]
[1745237599923,0.76805831,87180.0,87179.0,1e-08]
[1745237600331,0.76905831,87180.0,87179.0,1e-08]
[1745237604483,0.2334104,87180.0,87179.0,0.00100001]
[1745237604706,0.2334104,87180.0,87179.0,0.59657175]
[1745237604707,0.00499999,87180.0,87179.0,0.59657175]
[1745237605920,0.00399999,87180.0,87179.0,0.59657175]
[1745237606117,0.00199999,87180.0,87179.0,0.59657175]
[1745237606324,0.00199999,87180.0,87179.0,0.59857175]
[1745237608168,0.00199999,87180.0,87179.0,0.40447252]
[1745237610280,0.00199999,87180.0,87179.0,0.40547252]
[1745237610502,0.00199999,87180.0,87179.0,0.52492043]
[1745237610723,0.22933752,87208.0,87204.0,0.34]
[1745237610946,0.01146696,87207.0,87204.0,0.34]
[1745237611399,0.01146696,87207.0,87204.0,0.341]
[1745237611623,0.22929406,87225.0,87213.0,0.34]
[1745237611843,0.01146565,87217.0,87213.0,0.34]
[1745237612757,0.01146565,87217.0,87213.0,0.35405967]
[1745237613206,0.0014224,87215.0,87213.0,0.35405967]
[1745237613909,0.0014224,87215.0,87214.0,0.007847]
[1745237614796,0.0004224,87215.0,87214.0,0.007847]
[1745237615066,0.22974075,87215.0,87214.0,0.007847]
[1745237615281,0.35018866,87215.0,87214.0,0.007847]
[1745237615617,0.35118866,87215.0,87214.0,0.007847]
[1745237619238,0.35218866,87215.0,87214.0,0.007847]
[1745237619554,0.39898866,87215.0,87214.0,0.007847]
[1745237619945,0.22934464,87205.0,87204.0,0.001]
[1745237620348,0.22344464,87205.0,87204.0,0.01467326]
[1745237620556,0.22344464,87205.0,87204.0,0.00884587]
[1745237621188,0.22934387,87206.0,87204.0,0.00884587]
[1745237621392,0.34879178,87206.0,87204.0,0.00884587]
[1745237621871,0.34879178,87206.0,87205.0,0.00784587]
[1745237623090,0.01146657,87210.0,87207.0,0.34]
[1745237623295,0.24080045,87210.0,87207.0,0.34]
[1745237623897,0.24080045,87210.0,87208.0,0.00784587]
[1745237624047,0.24080045,87210.0,87209.0,0.00784587]
[1745237624250,0.01146657,87210.0,87209.0,0.00784587]
[1745237625580,0.01246657,87210.0,87209.0,0.00784587]
[1745237630922,0.2408069,87207.0,87203.0,0.14306966]
[1745237631126,0.2408069,87207.0,87202.0,0.20641568]
[1745237631972,0.2408069,87207.0,87202.0,0.22037993]
[1745237632667,0.2408069,87207.0,87204.0,0.01146736]
[1745237633048,0.01246658,87210.0,87206.0,0.34]
[1745237633258,0.24080222,87209.0,87206.0,0.34]
[1745237633457,0.22933847,87208.0,87206.0,0.34]
[1745237633638,0.2293499,87203.0,87202.0,0.01396425]
[1745237633835,0.24083379,87198.0,87195.0,0.34]
[1745237634759,0.01146815,87198.0,87195.0,0.34]
[1745237634961,0.22936831,87196.0,87195.0,0.002]
[1745237635159,0.24083602,87197.0,87195.0,0.002]
[1745237635749,0.24083602,87197.0,87195.0,0.001]
[1745237636220,0.24083602,87197.0,87195.0,0.002]
[1745237636897,0.24083602,87197.0,87195.0,0.001]
[1745237637062,0.01146828,87197.0,87195.0,0.001]
[1745237637438,0.01146828,87197.0,87195.0,0.002]
[1745237637700,0.01146828,87197.0,87195.0,0.001]
[1745237637918,0.01146828,87197.0,87194.0,0.02546046]
[1745237638120,0.01146828,87197.0,87195.0,0.001]
[1745237638255,0.01146828,87197.0,87195.0,0.002]
[1745237639866,0.24083602,87197.0,87195.0,0.002]
[1745237640103,0.24083602,87197.0,87195.0,0.001]
[1745237640971,0.24083602,87197.0,87195.0,0.002]
[1745237641766,0.24083268,87198.0,87195.0,0.002]
[1745237641969,0.22936799,87197.0,87195.0,0.002]
[1745237642421,0.00218548,87196.0,87195.0,0.002]
[1745237643373,0.00218548,87196.0,87195.0,0.00888202]
[1745237643557,0.00218548,87196.0,87195.0,0.00788202]
[1745237643752,0.00218548,87196.0,87195.0,0.00888202]
[1745237643978,0.00218548,87196.0,87195.0,0.00988202]
[1745237644319,0.00218548,87196.0,87195.0,0.001]
[1745237644538,0.00218548,87196.0,87195.0,0.002]
[1745237647913,0.17073339,87196.0,87195.0,0.002]
[1745237648141,0.21883339,87196.0,87195.0,0.002]
[1745237648777,0.21883339,87196.0,87195.0,0.001]
[1745237649192,0.21983339,87196.0,87195.0,0.001]
[1745237649823,0.01146946,87188.0,87185.0,0.01394937]
[1745237650025,0.11944791,87187.0,87185.0,0.01394937]
[1745237650142,0.24089353,87176.0,87173.0,0.01147144]
[1745237650356,0.24089353,87176.0,87172.0,0.01147157]
[1745237650549,0.01147117,87175.0,87172.0,0.01147157]
[1745237650747,0.01147144,87173.0,87168.0,0.01147209]
[1745237650959,0.24090027,87173.0,87169.0,0.01147196]
[1745237651194,0.24089691,87175.0,87170.0,0.01147183]
[1745237651391,0.24089691,87175.0,87172.0,0.001]
[1745237652081,0.22942856,87174.0,87172.0,0.001]
[1745237652895,0.22942856,87174.0,87172.0,0.01499416]
[1745237653112,0.22942856,87174.0,87172.0,0.01399416]
[1745237653317,0.24089691,87175.0,87171.0,0.3514717]
[1745237653521,0.24089992,87174.0,87172.0,0.01367589]
[1745237653732,0.24089691,87175.0,87171.0,0.3514717]
[1745237653941,0.01147078,87178.0,87174.0,0.35147131]
[1745237654148,0.01147091,87177.0,87173.0,0.01147144]
[1745237654360,0.22942404,87175.0,87172.0,0.341]
[1745237654563,0.24089521,87175.0,87172.0,0.341]
[1745237654778,0.24089521,87175.0,87172.0,0.34]
[1745237655188,0.24089521,87175.0,87174.0,0.001]
[1745237656655,0.22943078,87173.0,87167.0,0.34]
[1745237656874,0.22943955,87169.0,87167.0,0.34013537]
[1745237658160,0.22843955,87169.0,87167.0,0.00113537]
[1745237658507,0.00218548,87168.0,87167.0,0.20763553]
[1745237658708,0.00218548,87168.0,87167.0,0.00113537]
[1745237659119,0.0003032,87168.0,87167.0,0.00113537]
[1745237659559,0.0003032,87168.0,87167.0,0.34113537]
[1745237660391,0.0003032,87168.0,87167.0,0.34213537]
[1745237660615,0.0003032,87168.0,87167.0,0.00113537]
[1745237661029,0.0003032,87168.0,87167.0,0.00213537]
[1745237662069,0.0003032,87168.0,87167.0,0.34213537]
[1745237664964,0.01147157,87172.0,87168.0,0.21796988]
[1745237665148,0.24090536,87172.0,87167.0,0.00213537]
[1745237665351,0.2409093,87170.0,87167.0,0.00213537]
[1745237665753,0.22944111,87169.0,87167.0,0.00213537]
[1745237666180,0.22944111,87169.0,87167.0,0.00113537]
[1745237666382,0.22944111,87169.0,87168.0,0.001]
[1745237667101,0.22944111,87169.0,87167.0,0.00013537]
[1745237667330,0.22944111,87169.0,87167.0,0.00113537]
[1745237667507,0.22944111,87169.0,87167.0,0.00013537]
[1745237667708,0.22944111,87169.0,87167.0,0.00113537]
[1745237669083,0.22944111,87169.0,87167.0,0.00013537]
[1745237670583,0.22944111,87169.0,87168.0,0.00750486]
[1745237670777,0.23044112,87169.0,87168.0,0.00750486]
[1745237670991,0.22944111,87169.0,87168.0,0.00750486]
[1745237671253,0.23044112,87169.0,87168.0,0.00750486]
[1745237675849,0.00100001,87169.0,87168.0,0.00750486]
[1745237676090,0.00100001,87169.0,87168.0,0.55400265]
[1745237677233,0.00100001,87169.0,87168.0,0.34751291]
[1745237677981,0.23043937,87169.0,87168.0,0.34751291]
[1745237678189,0.00100001,87169.0,87168.0,0.34751291]
[1745237679043,0.00100001,87169.0,87168.0,0.34751932]
[1745237680833,0.00100001,87169.0,87168.0,0.34751969]
[1745237681666,0.00100001,87169.0,87168.0,0.34752043]
[1745237684464,0.00100001,87169.0,87168.0,0.34852043]
[1745237684664,0.01146775,87201.0,87192.0,0.21790933]
[1745237684881,0.01146775,87201.0,87196.0,0.01146841]
[1745237684882,0.11944791,87201.0,87196.0,0.01146841]
[1745237685083,0.22934776,87204.0,87196.0,0.01146841]
[1745237685084,0.24081512,87204.0,87197.0,0.34]
[1745237685263,0.01146749,87203.0,87198.0,0.01146815]
[1745237685471,0.0004225,87207.0,87204.0,0.01146736]
[1745237685625,0.0004225,87207.0,87206.0,0.34]
[1745237686035,0.00050002,87207.0,87206.0,0.34]
[1745237686276,0.00050002,87207.0,87206.0,0.35750882]
[1745237686634,0.00050002,87207.0,87206.0,0.01750882]
[1745237686834,0.01146815,87198.0,87195.0,0.34]
[1745237687042,0.22936568,87197.0,87195.0,0.34]
[1745237687260,0.16464791,87196.0,87195.0,0.34]
[1745237687781,0.01146946,87188.0,87185.0,0.01146986]
[1745237688531,0.24085926,87188.0,87185.0,0.01146986]
[1745237689337,0.24085926,87188.0,87184.0,0.01146999]
[1745237689550,0.22939392,87187.0,87185.0,0.0173555]
[1745237689781,0.01146973,87186.0,87183.0,0.34]
[1745237689994,0.01146973,87186.0,87183.0,0.11949949]
[1745237690655,0.01146973,87186.0,87185.0,0.001]
[1745237691888,0.01146973,87186.0,87183.0,0.36871021]
[1745237692298,0.01146973,87186.0,87185.0,0.001]
[1745237693424,0.01146946,87188.0,87185.0,0.001]
[1745237693644,0.01146946,87188.0,87184.0,0.01146999]
[1745237694046,0.01146894,87192.0,87188.0,0.01146946]
[1745237694250,0.24084937,87192.0,87188.0,0.01146946]
[1745237694795,0.01146907,87191.0,87187.0,0.21792068]
[1745237695228,0.24084273,87194.0,87189.0,0.21791715]
[1745237696277,0.24083866,87196.0,87192.0,0.01146894]
[1745237696524,0.24083866,87196.0,87192.0,0.2179077]
[1745237698405,0.01146854,87195.0,87192.0,0.2179077]
[1745237698621,0.01146854,87195.0,87192.0,0.01146894]
[1745237698826,0.01146854,87195.0,87191.0,0.01146907]
[1745237700183,0.24084172,87195.0,87191.0,0.01146907]
[1745237700384,0.01146867,87194.0,87191.0,0.01146907]
[1745237701960,4e-05,87195.0,87191.0,0.01146907]
[1745237702156,4e-05,87195.0,87193.0,0.20643738]
[1745237702744,0.24085507,87190.0,87187.0,0.34]
[1745237702948,0.01146946,87188.0,87184.0,0.21792989]
[1745237703143,0.24085507,87190.0,87185.0,0.01146986]
[1745237703547,0.24085507,87190.0,87185.0,0.21792603]
[1745237704321,0.24085507,87190.0,87185.0,0.21892603]
[1745237704641,0.22939376,87187.0,87185.0,0.001]
[1745237705046,0.22922027,87187.0,87185.0,0.001]
[1745237705848,0.11944791,87186.0,87185.0,0.001]
[1745237707001,0.22939725,87185.0,87183.0,0.01724009]
[1745237707206,0.24089379,87176.0,87170.0,0.20649089]
[1745237707411,0.24089379,87176.0,87167.0,0.2064993]
[1745237707412,0.01147157,87172.0,87168.0,0.341]
[1745237707598,0.01147157,87172.0,87168.0,0.56433611]
[1745237707794,0.22942883,87173.0,87169.0,0.01898343]
[1745237708022,0.01147131,87174.0,87169.0,0.2254771]
[1745237708023,0.24089944,87174.0,87169.0,0.2254771]
[1745237708224,0.01147144,87173.0,87170.0,0.01147183]
[1745237708420,0.01147144,87173.0,87170.0,0.0199833]
[1745237708855,0.01147144,87173.0,87171.0,0.00751147]
[1745237709065,0.2409024,87173.0,87172.0,0.00751147]
[1745237709470,0.22943673,87170.0,87169.0,0.003]
[1745237709641,0.34888464,87170.0,87169.0,0.003]
[1745237710075,0.34888464,87170.0,87169.0,0.002]
[1745237710294,0.34888464,87170.0,87168.0,0.01783988]
[1745237710535,0.11844791,87169.0,87168.0,0.01783988]
[1745237714464,0.11844791,87169.0,87168.0,0.001]
[1745237716533,0.11944791,87169.0,87168.0,0.001]
[1745237716732,0.12044791,87169.0,87168.0,0.001]
[1745237716954,0.16664791,87169.0,87168.0,0.001]
[1745237717356,0.16864791,87169.0,87168.0,0.001]
[1745237717723,0.16764791,87169.0,87168.0,0.001]
[1745237717919,0.16664791,87169.0,87168.0,0.001]
[1745237718256,0.16864791,87169.0,87168.0,0.001]
[1745237725764,0.12244791,87169.0,87168.0,0.001]
[1745237728486,0.17154791,87169.0,87168.0,0.001]
[1745237730874,0.01147262,87164.0,87161.0,0.0048432]
[1745237731391,0.22945515,87163.0,87161.0,0.0048432]
[1745237732710,0.23045515,87163.0,87161.0,0.0048432]
[1745237733272,0.23145515,87163.0,87161.0,0.0048432]
[1745237739909,0.35090306,87163.0,87161.0,0.0048432]
[1745237748681,0.002,87163.0,87161.0,0.0048432]
[1745237748901,0.002,87163.0,87162.0,0.0484]
[1745237749101,0.002,87163.0,87162.0,0.43929432]
[1745237749418,0.002,87163.0,87162.0,0.437]
[1745237749622,4.503e-05,87174.0,87171.0,0.3514717]
[1745237750309,4.503e-05,87174.0,87173.0,0.34]
[1745237751547,0.00104503,87174.0,87173.0,0.34]
[1745237758521,0.00104503,87174.0,87169.0,0.35147196]
[1745237758686,0.00104503,87174.0,87173.0,0.34]
[1745237759734,0.00104503,87174.0,87173.0,0.20648595]
[1745237760468,0.00104503,87174.0,87172.0,0.34]
[1745237760898,0.00104503,87174.0,87171.0,0.3514717]
[1745237761106,0.01251634,87174.0,87171.0,0.0114717]
[1745237761457,0.01151634,87174.0,87171.0,0.0114717]
[1745237762015,4.503e-05,87174.0,87172.0,0.20648832]
[1745237762352,4.503e-05,87174.0,87171.0,0.0114717]
[1745237762554,4.503e-05,87174.0,87171.0,0.3514717]
[1745237762757,0.00104503,87174.0,87171.0,0.3514717]
[1745237763158,4.503e-05,87174.0,87171.0,0.3514717]
[1745237763810,4.503e-05,87174.0,87172.0,0.20648832]
[1745237764025,4.503e-05,87174.0,87173.0,0.0519941]
[1745237764208,4.503e-05,87174.0,87172.0,0.05689689]
[1745237764612,4.503e-05,87174.0,87173.0,0.00229399]
[1745237764810,4.503e-05,87174.0,87172.0,0.05689689]
[1745237765555,4.503e-05,87174.0,87173.0,0.00229397]
[1745237765983,0.00104503,87174.0,87173.0,0.00229397]
[1745237766391,4.503e-05,87174.0,87173.0,0.00229397]
[1745237770357,4.503e-05,87174.0,87172.0,0.05689689]
[1745237772032,4.503e-05,87174.0,87171.0,0.0114717]
[1745237772257,4.503e-05,87174.0,87171.0,0.19501874]
[1745237772996,4.503e-05,87174.0,87172.0,0.34]
[1745237773240,4.503e-05,87174.0,87172.0,0.52354395]
[1745237773802,4.503e-05,87174.0,87172.0,0.34]
[1745237775722,0.2294492,87166.0,87164.0,0.34]
[1745237775953,0.048,87165.0,87164.0,0.34]
[1745237776741,0.24092514,87164.0,87160.0,0.01783254]
[1745237777075,0.22845707,87163.0,87162.0,0.001]
[1745237778826,0.22947569,87156.0,87149.0,0.34]
[1745237779004,0.01147354,87157.0,87149.0,0.34]
[1745237779220,0.01147381,87155.0,87149.0,0.3514746]
[1745237779426,0.01147381,87155.0,87150.0,0.01147446]
[1745237779649,0.01147394,87154.0,87149.0,0.3514746]
[1745237779842,0.01147381,87155.0,87150.0,0.01147446]
[1745237780121,0.01147367,87156.0,87150.0,0.02742633]
[1745237780342,0.22947885,87154.0,87150.0,0.01147446]
[1745237781406,0.22947885,87154.0,87149.0,0.0134746]
[1745237781615,0.22947885,87154.0,87151.0,0.01147433]
[1745237781854,0.22947885,87154.0,87149.0,0.0134746]
[1745237781855,0.01147288,87162.0,87156.0,0.34]
[1745237781990,0.22946871,87158.0,87156.0,0.34]
[1745237782986,0.24094212,87158.0,87154.0,0.01147394]
[1745237783187,0.22946871,87158.0,87154.0,0.01147394]
[1745237783530,0.22946737,87159.0,87154.0,0.35147394]
[1745237783741,0.22946505,87160.0,87155.0,0.01147381]
[1745237783937,0.22946505,87160.0,87154.0,0.53505495]
[1745237783938,0.22946725,87159.0,87154.0,0.53505495]
[1745237784179,0.22946505,87160.0,87156.0,0.35147367]
[1745237784382,0.22946505,87160.0,87157.0,0.01147354]
[1745237784958,0.22946832,87158.0,87156.0,0.34]
[1745237785134,0.22946832,87158.0,87153.0,0.01147407]
[1745237785135,0.24094173,87158.0,87153.0,0.01147407]
[1745237785320,0.24095176,87155.0,87152.0,0.34]
[1745237785534,0.22947795,87155.0,87152.0,0.34]
[1745237786137,0.22948117,87154.0,87152.0,0.34]
[1745237786411,0.22948833,87151.0,87149.0,0.01590045]
[1745237786749,0.22948833,87151.0,87148.0,0.34]
[1745237786750,0.22849201,87149.0,87148.0,0.34]
[1745237787354,0.22949963,87147.0,87144.0,0.0008446]
[1745237787586,0.22949963,87147.0,87145.0,0.01675689]
[1745237789258,0.22949963,87147.0,87145.0,0.01720849]
[1745237790028,0.23179381,87147.0,87145.0,0.01720849]
[1745237790936,0.23279381,87147.0,87145.0,0.01720849]
[1745237791149,0.23179381,87147.0,87145.0,0.01720849]
[1745237791369,0.23279381,87147.0,87145.0,0.01720849]
[1745237792051,0.0496,87146.0,87145.0,0.01720849]
[1745237792491,0.05189418,87146.0,87145.0,0.01720849]
[1745237792713,0.17234209,87146.0,87145.0,0.01720849]
[1745237792925,0.0506,87146.0,87145.0,0.01720849]
[1745237793396,0.28009991,87146.0,87145.0,0.01720849]
[1745237793815,0.28209991,87146.0,87145.0,0.01720849]
[1745237794778,0.28109991,87146.0,87145.0,0.01720849]
[1745237801322,0.0516,87146.0,87145.0,0.01720849]
[1745237801524,0.002,87146.0,87145.0,0.54081053]
[1745237803910,0.002,87146.0,87145.0,0.35720849]
[1745237806667,0.0486,87146.0,87145.0,0.35720849]
[1745237807417,0.002,87146.0,87145.0,0.35720849]
[1745237809352,0.002,87146.0,87145.0,0.54081053]
[1745237812225,0.002,87146.0,87145.0,0.35720849]
[1745237818638,0.002,87146.0,87145.0,0.54081053]
[1745237820247,0.002,87146.0,87145.0,0.58621053]
[1745237821555,0.00035628,87147.0,87145.0,0.58621053]
[1745237821774,0.01147144,87173.0,87169.0,0.01147196]
[1745237821986,0.01147157,87172.0,87168.0,0.34]
[1745237822237,0.05707117,87175.0,87170.0,0.34]
[1745237822508,0.05707117,87175.0,87170.0,0.01147183]
[1745237822774,0.01147131,87174.0,87170.0,0.01147183]
[1745237823014,0.01147183,87170.0,87167.0,0.34]
[1745237823255,0.22944199,87168.0,87167.0,0.34]
[1745237823684,0.27913617,87168.0,87167.0,0.34]
[1745237823892,0.27684199,87168.0,87167.0,0.34]
[1745237824316,0.01147275,87163.0,87160.0,0.34]
[1745237824524,0.24092971,87163.0,87159.0,0.01147328]
[1745237824733,0.01147288,87162.0,87159.0,0.01147328]
[1745237825886,0.01147288,87162.0,87159.0,0.35147328]
[1745237826689,0.01247288,87162.0,87159.0,0.35147328]
[1745237826892,0.01147302,87161.0,87158.0,0.34]
[1745237827133,0.2409353,87161.0,87158.0,0.34]
[1745237827586,0.0473,87160.0,87158.0,0.34]
[1745237827963,0.0473,87160.0,87156.0,0.35147367]
[1745237828143,0.01147328,87159.0,87156.0,0.35147367]
[1745237829192,0.0473,87160.0,87157.0,0.01147354]
[1745237829716,4e-05,87161.0,87158.0,0.19504694]
[1745237829911,0.00104,87161.0,87160.0,0.52357044]
[1745237830134,4e-05,87161.0,87160.0,0.52353044]
[1745237830699,4e-05,87161.0,87160.0,0.34]
[1745237830904,0.00104,87161.0,87160.0,0.34]
[1745237831646,0.00208,87161.0,87160.0,0.34]
[1745237832048,0.23154042,87161.0,87160.0,0.34]
[1745237832657,0.23254042,87161.0,87160.0,0.34]
[1745237833101,0.0473,87147.0,87145.0,0.01816439]
[1745237834278,0.0473,87147.0,87145.0,0.01916439]
[1745237836297,0.27679889,87147.0,87145.0,0.01916439]
[1745237840654,0.27679889,87147.0,87145.0,0.01816439]
[1745237842830,0.00229418,87146.0,87145.0,0.01816439]
[1745237845172,0.00329418,87146.0,87145.0,0.01816439]
[1745237845400,0.00429418,87146.0,87145.0,0.01816439]
[1745237846157,0.002,87146.0,87145.0,0.01816439]
[1745237846954,0.00429418,87146.0,87145.0,0.01816439]
[1745237850398,0.002,87146.0,87145.0,0.01816439]
[1745237850906,0.002,87146.0,87145.0,0.01752067]
[1745237851106,0.002,87146.0,87145.0,0.01652067]
[1745237851240,0.002,87146.0,87145.0,0.01752067]
[1745237851775,0.24098712,87142.0,85614.0,0.0130831]
[1745237851958,0.01147565,87141.0,86987.0,0.001]
[1745237852157,0.01147565,87141.0,86979.0,0.001]
[1745237852371,0.01147565,87141.0,87100.0,0.05755111]
[1745237852771,0.01147565,87141.0,87136.0,0.21044308]
[1745237852974,0.2409915,87140.0,87136.0,0.02682365]
[1745237853831,0.2409915,87140.0,87136.0,0.36682365]
[1745237854136,0.2409915,87140.0,87136.0,0.36582365]
[1745237854373,0.2409915,87140.0,87136.0,0.36682365]
[1745237854963,0.2409915,87140.0,87136.0,0.36582365]
[1745237855198,0.22952362,87137.0,87136.0,0.01534734]
[1745237856298,0.2892963,87139.0,87136.0,0.01534734]
[1745237856535,0.22952234,87138.0,87136.0,0.01534734]
[1745237856776,0.22952234,87138.0,87136.0,0.01434734]
[1745237857000,0.24098873,87141.0,87138.0,0.34]
[1745237857212,0.22951723,87140.0,87138.0,0.34]
[1745237857671,0.24098873,87141.0,87138.0,0.34]
[1745237857883,0.01147578,87140.0,87137.0,0.35147618]
[1745237858058,0.01147578,87140.0,87137.0,0.5350943]
[1745237858798,0.01147525,87144.0,87140.0,0.34]
[1745237859012,0.2409818,87144.0,87140.0,0.34]
[1745237859571,0.2409818,87144.0,87140.0,0.35147578]
[1745237859773,0.01147525,87144.0,87140.0,0.35147578]
[1745237860169,0.24098194,87144.0,87140.0,0.35147578]
[1745237860555,0.01147525,87144.0,87140.0,0.35147578]
[1745237860904,0.01147539,87143.0,87140.0,0.01147578]
[1745237861309,0.24098597,87142.0,87139.0,0.35147591]
[1745237862142,0.24098597,87142.0,87139.0,0.35047591]
[1745237862604,0.01147552,87142.0,87139.0,0.35047591]
[1745237863047,0.22951308,87141.0,87139.0,0.34]
[1745237863393,0.0471,87140.0,87139.0,0.34]
[1745237863970,0.0471,87140.0,87137.0,0.35147618]
[1745237865253,0.27661579,87140.0,87137.0,0.35147618]
[1745237865783,0.28809157,87140.0,87137.0,0.34]
[1745237865980,0.24099593,87139.0,87136.0,0.02616718]
[1745237867309,0.24099593,87139.0,87136.0,0.01469087]
[1745237867725,0.24099593,87139.0,87135.0,0.35147644]
[1745237868158,0.05857578,87140.0,87137.0,0.34]
[1745237868622,0.01147512,87145.0,87141.0,0.34]
[1745237868867,0.24142746,87146.0,87141.0,0.34]
[1745237868868,0.00045032,87146.0,87145.0,0.18360204]
[1745237869131,0.0499,87170.0,87160.0,0.52357044]
[1745237869355,0.06137104,87176.0,87160.0,0.52357044]
[1745237869585,0.00015232,87161.0,87160.0,0.52357044]
[1745237871399,0.00115232,87161.0,87160.0,0.52357044]
[1745237871804,0.00215232,87161.0,87160.0,0.52357044]
[1745237873519,0.00115232,87161.0,87160.0,0.52357044]
[1745237873920,0.00015232,87161.0,87160.0,0.52357044]
[1745237874525,0.00115232,87161.0,87160.0,0.52357044]
[1745237877995,0.00015232,87161.0,87160.0,0.52357044]
[1745237879744,0.0004225,87182.0,87171.0,0.52354728]
[1745237879952,0.22942769,87174.0,87171.0,0.34]
[1745237880124,0.01147117,87175.0,87171.0,0.34]
[1745237880805,0.24089839,87174.0,87171.0,0.34]
[1745237881014,0.00104,87172.0,87171.0,0.52354728]
[1745237881451,0.00204,87172.0,87171.0,0.52354728]
[1745237886861,0.0004225,87182.0,87180.0,0.52352833]
[1745237887598,0.0004225,87196.0,87180.0,0.52352833]
[1745237887599,0.0004224,87198.0,87197.0,0.52349255]
[1745237887814,0.0004225,87208.0,87205.0,0.01146723]
[1745237888019,0.0004225,87208.0,87207.0,0.34]
[1745237888672,0.0004225,87208.0,87207.0,0.45944791]
[1745237889284,0.0024225,87208.0,87207.0,0.45944791]
[1745237889489,0.0004225,87208.0,87207.0,0.45944791]
[1745237889695,0.0004225,87208.0,87207.0,0.11944791]
[1745237891040,0.0014225,87208.0,87207.0,0.11944791]
[1745237891624,0.0014225,87208.0,87207.0,0.45944791]
[1745237892157,0.0014225,87208.0,87207.0,0.34]
[1745237894768,0.22935427,87202.0,87196.0,0.01146841]
[1745237894972,0.22935427,87202.0,87180.0,0.18810967]
[1745237894973,0.22936305,87198.0,87180.0,0.18810967]
[1745237895182,0.01146946,87188.0,87184.0,0.01146999]
[1745237895388,0.24084005,87195.0,87187.0,0.01146959]
[1745237895598,0.24084005,87195.0,87191.0,0.01146907]
[1745237895789,0.0004224,87209.0,87199.0,0.01146802]
[1745237896051,0.01146723,87205.0,87201.0,0.01146775]
[1745237898157,0.23076141,87208.0,87201.0,0.01146775]
[1745237898158,0.0014225,87208.0,87205.0,0.18347571]
[1745237898374,0.0014225,87208.0,87206.0,0.18347361]
[1745237899114,0.0014225,87208.0,87207.0,0.34]
[1745237899949,0.0024225,87208.0,87207.0,0.34]
[1745237901601,0.0034225,87208.0,87207.0,0.34]
[1745237902183,0.0044225,87208.0,87207.0,0.34]
[1745237902398,0.0034225,87208.0,87207.0,0.34]
[1745237903357,0.0034225,87208.0,87207.0,0.46044791]
[1745237906495,0.0034225,87208.0,87207.0,0.25248471]
[1745237907307,0.0034225,87208.0,87207.0,0.12044791]
[1745237908464,0.0034225,87208.0,87207.0,0.46044791]
[1745237910858,0.0024225,87208.0,87207.0,0.45944791]
[1745237911097,0.0024225,87208.0,87207.0,0.4394]
[1745237912543,0.0024225,87208.0,87207.0,0.34]
[1745237913271,0.0024225,87208.0,87207.0,0.45944791]
[1745237913878,0.0024225,87208.0,87207.0,0.46044791]
[1745237914690,0.0024225,87208.0,87207.0,0.341]
[1745237922824,0.0528225,87208.0,87207.0,0.001]
[1745237923032,0.05511668,87208.0,87207.0,0.001]
[1745237928001,0.17456459,87208.0,87207.0,0.001]
[1745237928180,0.22186459,87208.0,87207.0,0.001]
[1745237929506,0.22386459,87208.0,87207.0,0.001]
[1745237929914,0.22186459,87208.0,87207.0,0.001]
[1745237930338,0.22386459,87208.0,87207.0,0.001]
[1745237935292,0.1021225,87208.0,87207.0,0.001]
[1745237935499,0.10441668,87208.0,87207.0,0.001]
[1745237936679,0.0548225,87208.0,87207.0,0.341]
[1745237939366,0.0548225,87208.0,87207.0,0.001]
[1745237939742,0.0508225,87208.0,87207.0,0.001]
[1745237939861,0.0518225,87208.0,87207.0,0.001]
[1745237940058,0.0528225,87208.0,87207.0,0.001]
[1745237942104,0.0528225,87208.0,87207.0,0.341]
[1745237942326,0.0492895,87208.0,87207.0,0.342]
[1745237943447,0.0492895,87208.0,87207.0,0.002]
[1745237945408,0.002,87208.0,87207.0,0.002]
[1745237945635,0.00204,87208.0,87207.0,0.002]
[1745237947130,4e-05,87208.0,87207.0,0.002]
[1745237948411,4e-05,87208.0,87207.0,0.81585467]
[1745237949491,0.22937675,87208.0,87207.0,0.81585467]
[1745237949697,0.27647675,87208.0,87207.0,0.81585467]
[1745237950977,0.27747675,87208.0,87207.0,0.81585467]
[1745237951172,0.39692466,87208.0,87207.0,0.81585467]
[1745237951957,0.39792466,87208.0,87207.0,0.81585467]
[1745237952112,0.39692466,87208.0,87207.0,0.81585467]
[1745237952529,0.39792466,87208.0,87207.0,0.81585467]
[1745237952872,0.39692466,87208.0,87207.0,0.81585467]
[1745237953125,0.39892466,87208.0,87207.0,0.81585467]
[1745237953325,0.40069247,87208.0,87207.0,0.47408686]
[1745237955188,0.39869247,87208.0,87207.0,0.47408686]
[1745237955438,0.39769247,87208.0,87207.0,0.47408686]
[1745237955690,0.40169247,87208.0,87207.0,0.47408686]
[1745237956210,0.44739247,87208.0,87207.0,0.47408686]
[1745237956456,0.44739247,87208.0,87207.0,0.47308686]
[1745237957762,0.44739247,87208.0,87184.0,0.01473082]
[1745237957763,0.22939725,87185.0,87184.0,0.01473082]
[1745237957966,0.23169143,87185.0,87184.0,0.01473082]
[1745237958131,0.22941567,87178.0,87177.0,0.10541154]
[1745237958346,0.2408834,87180.0,87178.0,0.34]
[1745237959355,0.00229418,87179.0,87178.0,0.34]
[1745237959576,0.22941567,87178.0,87177.0,0.0136895]
[1745237959806,0.23170897,87179.0,87177.0,0.0136895]
[1745237960022,0.23170897,87179.0,87178.0,0.002]
[1745237960466,0.23170897,87179.0,87178.0,0.001]
[1745237961487,0.23170897,87179.0,87177.0,0.0136895]
[1745237961888,0.00229418,87179.0,87177.0,0.0136895]
[1745237962106,0.2294148,87179.0,87177.0,0.0136895]
[1745237962269,0.2294148,87179.0,87177.0,0.0176895]
[1745237962631,0.2294148,87179.0,87177.0,0.0166895]
[1745237962836,0.2294148,87179.0,87177.0,0.0176895]
[1745237963355,0.23170898,87179.0,87177.0,0.0176895]
[1745237963553,0.2294148,87179.0,87177.0,0.0176895]
[1745237964191,0.05856973,87186.0,87177.0,0.0176895]
[1745237964192,0.0471,87186.0,87177.0,0.0186895]
[1745237964402,0.01146933,87189.0,87183.0,0.34]